fUSD/lending_fUSD_20260130
["ID","MTS","AMOUNT","RATE_DAILY","PERIOD"]
[404071458,1769784653138,-3656.743551,0.00022137,2]
[404071459,1769784653148,-3656.743551,0.00022137,2]
[404071460,1769784653158,-3656.743551,0.00022137,2]
[404071461,1769784653169,-250.0,0.00022137,2]
[404071462,1769784653179,-250.0,0.00022137,2]
[404071463,1769784653188,-171.51596019,0.00022137,2]
[404071464,1769784653198,-500.0,0.00022137,2]
[404071465,1769784653208,-150.0,0.00022137,2]
[404071466,1769784653220,-500.0,0.00022137,2]
[404071467,1769784653230,-500.0,0.00022137,2]
[404071468,1769784653239,-500.0,0.00022137,2]
[404071469,1769784653249,-500.0,0.00022137,2]
[404071470,1769784653258,-150.0,0.00022137,2]
[404071471,1769784653268,-150.0,0.00022137,2]
[404071472,1769784653279,-150.0,0.00022173,2]
[404071473,1769784653290,-153.15208977,0.00022192,2]
[404071474,1769784653300,-162.27706607,0.00022192,2]
[404071475,1769784653310,-500.0,0.00022192,2]
[404071476,1769784653319,-500.0,0.00022192,2]
[404071477,1769784653329,-500.0,0.00022192,2]
[404071478,1769784653339,-150.0,0.00022192,2]
[404071479,1769784653349,-150.0,0.00022192,2]
[404071480,1769784653359,-151.0,0.000222,2]
[404071481,1769784653370,-444.897922,0.000222,2]
[404071482,1769784653380,-367.054916,0.000222,2]
[404071483,1769784653389,-444.897922,0.000222,2]
[404071484,1769784653399,-367.054916,0.000222,2]
[404071485,1769784653408,-444.897922,0.000222,2]
[404071486,1769784653418,-367.054916,0.000222,2]
[404071487,1769784653429,-444.897922,0.000222,2]
[404071488,1769784653439,-367.054916,0.000222,2]
[404071489,1769784653449,-2052.0,0.00022217,2]
[404071490,1769784653458,-2877.185662,0.00022217,2]
[404071491,1769784653468,-2877.185662,0.00022217,2]
[404071492,1769784653478,-2877.185662,0.00022217,2]
[404071493,1769784653492,-2877.185662,0.00022217,2]
[404071494,1769784653502,-151.0,0.00022217,2]
[404071495,1769784653511,-151.0,0.00022217,2]
[404071496,1769784653521,-151.0,0.00022217,2]
[404071497,1769784653531,-201.93286099,0.00022221,2]
[404071498,1769784653542,-987.88080104,0.00022221,2]
[404071499,1769784653552,-500.0,0.00022247,2]
[404071500,1769784653562,-500.0,0.00022247,2]
[404071501,1769784653572,-567.0,0.00022247,2]
[404071502,1769784653582,-200.0,0.00022247,2]
[404071503,1769784653592,-250.0,0.00022247,2]
[404071504,1769784653603,-550.0,0.00022264,2]
[404071505,1769784653612,-500.0,0.00022302,2]
[404071506,1769784653622,-189.75735068,0.00022302,2]
[404071507,1769784653633,-1163.45249202,0.00022356,2]
[404071508,1769784653643,-500.0,0.00022357,2]
[404071509,1769784653652,-500.0,0.00022411,2]
[404071510,1769784653661,-500.0,0.00022466,2]
[404071511,1769784653671,-500.0,0.00022521,2]
[404071512,1769784653680,-866.59131139,0.00022564,2]
[404071513,1769784653690,-500.0,0.00022576,2]
[404071514,1769784653699,-1000.0,0.00022588,2]
[404071515,1769784653710,-916.5,0.000226,4]
[404071516,1769784653719,-151.0,0.0002263,2]
[404071517,1769784653728,-151.0,0.0002263,2]
[404071518,1769784653738,-151.0,0.0002263,2]
[404071519,1769784653748,-151.0,0.0002263,2]
[404071520,1769784653758,-151.0,0.0002263,2]
[404071521,1769784653767,-151.0,0.0002263,2]
[404071522,1769784653777,-151.0,0.0002263,2]
[404071523,1769784653787,-151.0,0.0002263,2]
[404071524,1769784653797,-151.0,0.0002263,2]
[404071525,1769784653807,-151.0,0.0002263,2]
[404071526,1769784653817,-151.0,0.0002263,2]
[404071527,1769784653827,-151.0,0.0002263,2]
[404071528,1769784653837,-500.0,0.00022631,2]
[404071529,1769784653847,-500.0,0.00022685,2]
[404071530,1769784653860,-1000.0,0.00022694,2]
[404071531,1769784653870,-502.0,0.00022697,5]
[404071532,1769784653880,-250.0,0.00022721,2]
[404071533,1769784653890,-7289.78,0.0002274,2]
[404071534,1769784653900,-202.655568,0.0002274,2]
[404071535,1769784653910,-151.0,0.0002274,2]
[404071536,1769784653921,-151.0,0.0002274,2]
[404071537,1769784653930,-202.655568,0.0002274,2]
[404071538,1769784653940,-202.655568,0.0002274,2]
[404071539,1769784653950,-202.655568,0.0002274,2]
[404071540,1769784653960,-500.0,0.0002274,2]
[404071541,1769784653969,-346.92554585,0.00022767,2]
[404071542,1769784653979,-209.40437684,0.00022769,2]
[404071543,1769784653989,-1024.43239068,0.00022769,2]
[404071544,1769784653998,-500.0,0.00022795,2]
[404071545,1769784654009,-650.0,0.00022812,2]
[404071546,1769784654018,-500.0,0.0002285,2]
[404071547,1769784654028,-1000.0,0.00022862,2]
[404071548,1769784654039,-500.0,0.00022905,2]
[404071549,1769784654048,-500.0,0.00022959,2]
[404071550,1769784654062,-400.0,0.00023,2]
[404071551,1769784654072,-500.0,0.00023014,2]
[404071552,1769784654082,-1075.4,0.00023035,2]
[404071553,1769784654095,-500.0,0.00023069,2]
[404071554,1769784654107,-213.909,0.000231,2]
[404071555,1769784654117,-500.0,0.00023124,2]
[404071556,1769784654128,-357.776911,0.00023136,2]
[404071557,1769784654138,-357.776911,0.00023136,2]
[404071558,1769784654148,-357.776911,0.00023136,2]
[404071559,1769784654158,-357.776911,0.00023136,2]
[404071560,1769784654168,-151.0,0.00023136,2]
[404071561,1769784654179,-268.782197,0.00023136,2]
[404071562,1769784654188,-1465.0,0.00023136,2]
[404071563,1769784654198,-151.0,0.00023156,2]
[404071564,1769784654207,-151.0,0.00023156,2]
[404071565,1769784654217,-151.0,0.00023156,2]
[404071566,1769784654226,-500.0,0.00023178,2]
[404071567,1769784654235,-500.0,0.00023233,2]
[404071568,1769784654245,-350.0,0.00023268,2]
[404071569,1769784654258,-500.0,0.00023288,2]
[404071570,1769784654268,-268.98324054,0.00023317,2]
[404071571,1769784654277,-1062.33638913,0.00023317,2]
[404071572,1769784654287,-500.0,0.00023343,2]
[404071573,1769784654297,-694.95626417,0.0002336,2]
[404071574,1769784654307,-500.0,0.00023398,2]
[404071575,1769784654317,-2000.0,0.000234,2]
[404071576,1769784654326,-1000.0,0.0002341,2]
[404071577,1769784654336,-500.0,0.00023452,2]
[404071578,1769784654346,-500.0,0.00023507,2]
[404071579,1769784654357,-500.0,0.00023562,2]
[404071580,1769784654366,-1153.6744562,0.00023584,2]
[404071581,1769784654376,-3479.0,0.0002359,2]
[404071582,1769784654386,-491.094,0.0002359,2]
[404071583,1769784654396,-616.0,0.0002359,2]
[404071584,1769784654407,-1270.0,0.0002359,2]
[404071585,1769784654417,-2444.0,0.0002359,2]
[404071586,1769784654430,-4361.91302848,0.0002359,2]
[404071587,1769784654449,-2213.08697152,0.0002359,2]
[404071588,1769784654463,-502.0,0.00023621,6]
[404071589,1769784654472,-75.32494438,0.00023677,2]
[404071590,1769784692825,221.67,0.00012611,2]
[404071591,1769784728061,539.886745,7.945e-05,2]
[404071592,1769784832268,1502.892293,0.00013196,2]
[404071593,1769784859181,258.25824238,0.00011233,2]
[404071594,1769784859212,6249.58904673,0.00011233,2]
[404071595,1769784859240,4733.85271089,0.00011233,2]
[404071596,1769784985892,1515.73633584,0.00013248,2]
[404071597,1769784985915,984.26366416,0.00013248,2]
[404071598,1769784987040,500.0,0.00013248,2]
[404071599,1769784987662,500.0,0.00013248,2]
[404071600,1769784988220,500.0,0.00013248,2]
[404071601,1769784988764,500.0,0.00013248,2]
[404071602,1769784989346,500.0,0.00013248,2]
[404071603,1769784989884,500.0,0.00013248,2]
[404071604,1769784990468,500.0,0.00013248,2]
[404071605,1769784991089,500.0,0.00013248,2]
[404071606,1769784991636,500.0,0.00013248,2]
[404071607,1769784992221,500.0,0.00013248,2]
[404071608,1769784992708,265.32538257,0.00013248,2]
[404071609,1769784992733,234.67461743,0.00013248,2]
[404071610,1769784993263,500.0,0.00013248,2]
[404071611,1769784993847,500.0,0.00013248,2]
[404071612,1769784994388,500.0,0.00013248,2]
[404071613,1769784994942,500.0,0.00013248,2]
[404071614,1769784995504,500.0,0.00013248,2]
[404071615,1769784996029,500.0,0.00013248,2]
[404071616,1769784996580,500.0,0.00013248,2]
[404071617,1769784997145,398.11835072,0.00013248,2]
[404071618,1769785043431,2116.79607858,0.00013197,2]
[404071633,1769785277005,-1280.9594,0.00013165,2]
[404071634,1769785277039,-1200.0,0.00013196,2]
[404071635,1769785277074,-500.0,0.00013196,2]
[404071636,1769785277107,-300.0,0.00013196,2]
[404071637,1769785277141,-500.0,0.00013196,2]
[404071638,1769785277179,-150.0,0.00013196,2]
[404071639,1769785277215,-500.0,0.00013196,2]
[404071640,1769785277263,-258.0,0.00013196,2]
[404071641,1769785277297,-150.0,0.00013196,2]
[404071642,1769785277328,-129.00949192,0.00013196,2]
[404071643,1769785282787,-64.07221616,0.00013196,2]
[404071644,1769785282819,-432.27845217,0.00013197,2]
[404071645,1769785286026,-992.70133666,0.00013197,2]
[404071646,1769785289503,-1985.40267332,0.00013197,2]
[404071647,1769785308233,-3725.189,0.00013196,2]
[404071648,1769785308265,-288.217,0.00013196,2]
[404071649,1769785311273,-3970.80534664,0.00013197,2]
[404071650,1769785314463,-2058.39930672,0.00013197,2]
[404071651,1769785340166,-4555.81680773,0.00013197,2]
[404071652,1769785340281,-10000.01,0.00013197,2]
[404071653,1769785341042,12931.68,0.00012674,2]
[404071654,1769785342900,-2468.80649378,0.00013197,2]
[404071655,1769785342935,-1787.73229691,0.00013197,2]
[404071656,1769785342969,-250.0,0.00013222,2]
[404071657,1769785343006,-250.0,0.00013247,2]
[404071658,1769785343129,-486.93241862,0.00013248,2]
[404071659,1769785348802,-2496.7565,0.00013165,2]
[404071660,1769785348838,-705.18031862,0.00013248,2]
[404071661,1769785348883,-3596.13636276,0.00013248,2]
[404071662,1769785348961,-2500.0,0.00013248,2]
[404071663,1769785348992,-205.3388415,0.00013263,2]
[404071664,1769785349023,-318.82234703,0.00013264,2]
[404071665,1769785349054,-268.46422622,0.00013264,2]
[404071666,1769785349095,-500.0,0.00013264,2]
[404071667,1769785349132,-500.0,0.00013264,2]
[404071668,1769785349168,-500.0,0.00013264,2]
[404071669,1769785349332,-500.0,0.00013264,2]
[404071670,1769785349370,-500.0,0.00013264,2]
[404071671,1769785349407,-500.0,0.00013264,2]
[404071672,1769785349445,-500.0,0.00013264,2]
[404071673,1769785349483,-500.0,0.00013264,2]
[404071674,1769785349522,-500.0,0.00013264,2]
[404071675,1769785349559,-500.0,0.00013264,2]
[404071676,1769785349602,-500.0,0.00013264,2]
[404071677,1769785349641,-500.0,0.00013264,2]
[404071678,1769785349679,-500.0,0.00013264,2]
[404071679,1769785349994,-414.7591705,0.00013264,2]
[404071680,1769785350018,-0.01,0.00013264,2]
[404071681,1769785482348,-10000.01,0.00013065,2]
[404071682,1769785482619,-2518.80491248,0.00013065,2]
[404071683,1769785482667,-4962.40017504,0.00013065,2]
[404071684,1769785482866,-2824.70320167,0.00013065,2]
[404071685,1769785482893,-4350.60359666,0.00013065,2]
[404071686,1769785482988,-2028.15319462,0.00013065,2]
[404071687,1769785483027,-5943.70361076,0.00013097,2]
[404071688,1769785483090,-10000.01,0.00013097,2]
[404071689,1769785483193,-10000.01,0.00013097,2]
[404071690,1769785483341,-10000.01,0.00013097,2]
[404071691,1769785483438,-10000.01,0.00013097,2]
[404071692,1769785483551,-10000.01,0.00013097,2]
[404071693,1769785487435,-10000.01,0.00013097,2]
[404071694,1769785487653,-10000.01,0.00013097,2]
[404071695,1769785487821,-10000.01,0.00013097,2]
[404071696,1769785488022,-10000.01,0.00013097,2]
[404071697,1769785488175,-10000.01,0.00013097,2]
[404071698,1769785488288,-10000.01,0.00013097,2]
[404071699,1769785488502,-10000.01,0.00013097,2]
[404071700,1769785488896,-10000.01,0.00013097,2]
[404071701,1769785488912,-10000.01,0.00013097,2]
[404071702,1769785576192,15322.16997135,0.00012997,2]
[404071704,1769785626826,-150.0,0.00013095,2]
[404071705,1769785629662,668.91911111,0.00012997,2]
[404071718,1769785676299,2142.35,0.00012851,2]
[404071719,1769785685944,757.60870955,0.00012997,2]
[404071720,1769785744299,374.60505288,0.00012997,2]
[404071721,1769785744679,1500.0,0.00012823,2]
[404071722,1769785753562,1774.63404531,0.00012997,2]
[404071724,1769785816060,11266.93342125,0.00012997,2]
[404071725,1769785816669,2626.56224346,0.00013,2]
[404071741,1769785831927,-250.0,0.00013021,2]
[404071742,1769785831940,-7.0,0.00013021,2]
[404071743,1769785831950,-368.32929321,0.00013021,2]
[404071744,1769785831961,-194.82973596,0.00013021,2]
[404071745,1769785831971,-2622.73,0.00013021,2]
[404071746,1769785831981,-351.45162062,0.00013087,2]
[404071747,1769785831993,-288.0,0.00013095,2]
[404071748,1769785832003,-150.0,0.00013095,2]
[404071749,1769785832012,-300.0,0.00013095,2]
[404071750,1769785832024,-1200.0,0.00013095,2]
[404071751,1769785832033,-324.4892862,0.00013096,2]
[404071752,1769785832044,-366.88750752,0.00013096,2]
[404071753,1769785832055,-500.0,0.00013096,2]
[404071754,1769785832064,-257.1416678,0.00013096,2]
[404071756,1769785832073,-327.70591199,0.00013096,2]
[404071758,1769785832083,-500.0,0.00013096,2]
[404071760,1769785832093,-64.79290467,0.00013096,2]
[404071786,1769785837804,-435.20709533,0.00013096,2]
[404071787,1769785837814,-500.0,0.00013096,2]
[404071788,1769785837823,-500.0,0.00013096,2]
[404071789,1769785837837,-500.0,0.00013096,2]
[404071790,1769785837847,-500.0,0.00013096,2]
[404071791,1769785837856,-500.0,0.00013096,2]
[404071792,1769785837866,-423.79650489,0.00013096,2]
[404071793,1769785837878,-76.20349511,0.00013096,2]
[404071794,1769785837887,-378.11128735,0.00013096,2]
[404071795,1769785837899,-121.88871265,0.00013096,2]
[404071796,1769785837908,-343.05409084,0.00013096,2]
[404071806,1769785840029,-156.94590916,0.00013096,2]
[404071807,1769785840050,-101.75909081,0.00013096,2]
[404071808,1769785840066,-432.65857029,0.00013096,2]
[404071809,1769785840077,-283.68875041,0.00013096,2]
[404071810,1769785840090,-216.31124959,0.00013096,2]
[404071811,1769785840100,-199.16375041,0.00013096,2]
[404071812,1769785840112,-300.83624959,0.00013096,2]
[404071813,1769785840122,-115.213178,0.00013096,2]
[404071814,1769785840135,-384.786822,0.00013096,2]
[404071815,1769785840145,-500.0,0.00013096,2]
[404071816,1769785840155,-500.0,0.00013096,2]
[404071817,1769785840164,-500.0,0.00013096,2]
[404071818,1769785840176,-364.2,0.00013096,2]
[404071819,1769785840186,-26630.56241256,0.00013097,2]
[404071820,1769785840249,-7021.0,0.00013097,2]
[404071821,1769785840262,-2220404.59397668,0.00013097,2]
[404071822,1769785840274,-174.48261702,0.00013097,2]
[404071823,1769785840284,-1273.29157306,0.00013097,2]
[404071824,1769785840294,-4173.74670489,0.00013097,2]
[404071825,1769785840304,-649.36910503,0.00013097,2]
[404071826,1769785840314,-5740.9965,0.00013165,2]
[404071827,1769785840324,-1000.0,0.00013264,2]
[404071828,1769785840334,-1000.0,0.00013264,2]
[404071829,1769785840344,-978.3186082,0.00013264,2]
[404071830,1769785840353,-337402.36,0.00013265,2]
[404071831,1769785840363,-9999.99,0.0001334,2]
[404071832,1769785840373,-3660.02,0.0001334,2]
[404071833,1769785840383,-9999.99,0.0001334,2]
[404071834,1769785840393,-4314.48,0.0001334,2]
[404071835,1769785840404,-3698.07,0.0001334,2]
[404071836,1769785840417,-10339.4,0.0001334,2]
[404071837,1769785840428,-464.49,0.0001334,2]
[404071838,1769785840438,-310.7,0.0001334,2]
[404071839,1769785840448,-9999.99,0.0001334,2]
[404071840,1769785840459,-514.51,0.0001334,2]
[404071841,1769785840469,-6247.3,0.0001334,2]
[404071842,1769785840479,-299.99,0.0001334,2]
[404071843,1769785840491,-500.0,0.0001334,2]
[404071844,1769785840502,-151.0,0.0001334,2]
[404071845,1769785840513,-151.0,0.0001334,2]
[404071846,1769785840523,-151.0,0.0001334,2]
[404071847,1769785840533,-151.0,0.0001334,2]
[404071848,1769785840543,-151.0,0.0001334,2]
[404071849,1769785840554,-151.0,0.0001334,2]
[404071850,1769785840564,-151.0,0.0001334,2]
[404071851,1769785840575,-151.0,0.0001334,2]
[404071853,1769785840585,-151.0,0.0001334,2]
[404071855,1769785840594,-151.0,0.0001334,2]
[404071857,1769785840605,-500.0,0.0001334,2]
[404071859,1769785840616,-151.0,0.0001334,2]
[404071861,1769785840626,-500.0,0.0001334,2]
[404071863,1769785840636,-151.0,0.0001334,2]
[404071864,1769785840646,-500.0,0.0001334,2]
[404071865,1769785840656,-151.0,0.0001334,2]
[404071866,1769785840666,-500.0,0.0001334,2]
[404071867,1769785840675,-151.0,0.0001334,2]
[404071868,1769785840685,-500.0,0.0001334,2]
[404071869,1769785840695,-151.0,0.0001334,2]
[404071870,1769785840705,-500.0,0.0001334,2]
[404071871,1769785840716,-151.0,0.0001334,2]
[404071872,1769785840725,-500.0,0.0001334,2]
[404071873,1769785840735,-151.0,0.0001334,2]
[404071874,1769785840745,-500.0,0.0001334,2]
[404071875,1769785840755,-151.0,0.0001334,2]
[404071876,1769785840765,-500.0,0.0001334,2]
[404071877,1769785840775,-151.0,0.0001334,2]
[404071878,1769785840784,-500.0,0.0001334,2]
[404071879,1769785840794,-297.90421389,0.0001334,2]
[404071880,1769785840803,-500.0,0.0001334,2]
[404071881,1769785840813,-500.0,0.0001334,2]
[404071882,1769785840823,-500.0,0.0001334,2]
[404071883,1769785840832,-500.0,0.0001334,2]
[404071884,1769785840842,-500.0,0.0001334,2]
[404071885,1769785840852,-200.0,0.0001334,2]
[404071886,1769785840862,-500.0,0.0001334,2]
[404071887,1769785840872,-500.0,0.0001334,2]
[404071888,1769785840882,-500.0,0.0001334,2]
[404071889,1769785840891,-500.0,0.0001334,2]
[404071890,1769785840901,-500.0,0.0001334,2]
[404071891,1769785840911,-500.0,0.0001334,2]
[404071892,1769785840920,-500.0,0.0001334,2]
[404071893,1769785840931,-151.0,0.0001334,2]
[404071894,1769785840940,-151.0,0.0001334,2]
[404071895,1769785840950,-151.0,0.0001334,2]
[404071896,1769785840959,-151.0,0.0001334,2]
[404071897,1769785840969,-151.0,0.0001334,2]
[404071898,1769785840979,-151.0,0.0001334,2]
[404071899,1769785840989,-151.0,0.0001334,2]
[404071900,1769785840998,-151.0,0.0001334,2]
[404071901,1769785841007,-151.0,0.0001334,2]
[404071902,1769785841017,-151.0,0.0001334,2]
[404071903,1769785841026,-151.0,0.0001334,2]
[404071904,1769785841036,-200.0,0.0001334,2]
[404071905,1769785841045,-815.61,0.0001334,2]
[404071906,1769785841055,-500.0,0.00013347,2]
[404071907,1769785841065,-9999.99,0.00013347,2]
[404071908,1769785841074,-150.99,0.00013347,2]
[404071909,1769785841083,-297.97,0.00013347,2]
[404071910,1769785841093,-3826.81,0.00013347,2]
[404071911,1769785841102,-999.99,0.00013347,2]
[404071912,1769785841112,-9154.49,0.00013347,2]
[404071913,1769785841121,-2101.52,0.00013347,2]
[404071914,1769785841131,-1000.0,0.00013365,2]
[404071915,1769785841140,-33275.4141,0.00013365,2]
[404071916,1769785841149,-216.93275455,0.00013528,2]
[404071917,1769785841159,-815.61,0.00013614,2]
[404071918,1769785841168,-500.0,0.00013621,2]
[404071919,1769785841179,-500.0,0.00013671,2]
[404071920,1769785841188,-150.0,0.00013671,2]
[404071921,1769785841198,-500.0,0.00013698,2]
[404071922,1769785841208,-563.52650006,0.00013698,2]
[404071923,1769785841217,-500.0,0.00013698,2]
[404071924,1769785841227,-500.0,0.00013698,2]
[404071925,1769785841237,-500.0,0.00013698,2]
[404071926,1769785841247,-500.0,0.00013698,2]
[404071927,1769785841257,-339.71365586,0.00013698,2]
[404071928,1769785841266,-500.0,0.00013698,2]
[404071929,1769785841276,-500.0,0.00013698,2]
[404071930,1769785841286,-500.0,0.00013698,2]
[404071931,1769785841295,-500.0,0.00013698,2]
[404071932,1769785841305,-500.0,0.00013698,2]
[404071933,1769785841315,-500.0,0.00013698,2]
[404071934,1769785841324,-500.0,0.00013698,2]
[404071935,1769785841334,-500.0,0.00013698,2]
[404071936,1769785841345,-622.5575592,0.00013698,2]
[404071937,1769785841354,-500.0,0.00013698,2]
[404071938,1769785841364,-500.0,0.00013698,2]
[404071939,1769785841375,-500.0,0.00013698,2]
[404071940,1769785841384,-500.0,0.00013698,2]
[404071941,1769785841394,-500.0,0.00013698,2]
[404071942,1769785841403,-500.0,0.00013698,2]
[404071943,1769785841416,-500.0,0.00013698,2]
[404071944,1769785841427,-500.0,0.00013698,2]
[404071945,1769785841438,-500.0,0.00013698,2]
[404071946,1769785841447,-519.46286686,0.00013698,2]
[404071947,1769785841457,-500.0,0.00013698,2]
[404071948,1769785841467,-500.0,0.00013698,2]
[404071949,1769785841477,-500.0,0.00013698,2]
[404071950,1769785841487,-500.0,0.00013698,2]
[404071951,1769785841498,-500.0,0.00013698,2]
[404071952,1769785841508,-500.0,0.00013698,2]
[404071953,1769785841517,-500.0,0.00013698,2]
[404071954,1769785841526,-500.0,0.00013698,2]
[404071955,1769785841536,-500.0,0.00013698,2]
[404071956,1769785841547,-500.0,0.00013698,2]
[404071957,1769785841557,-500.0,0.00013698,2]
[404071958,1769785841567,-500.0,0.00013698,2]
[404071959,1769785841577,-500.0,0.00013698,2]
[404071960,1769785841586,-500.0,0.00013698,2]
[404071961,1769785841596,-500.0,0.00013698,2]
[404071962,1769785841605,-500.0,0.00013698,2]
[404071963,1769785841616,-522.88632763,0.00013698,2]
[404071964,1769785841625,-500.0,0.00013698,2]
[404071965,1769785841636,-500.0,0.00013698,2]
[404071966,1769785841646,-500.0,0.00013698,2]
[404071967,1769785841656,-500.0,0.00013698,2]
[404071968,1769785841666,-500.0,0.00013698,2]
[404071969,1769785841678,-500.0,0.00013698,2]
[404071970,1769785841688,-500.0,0.00013698,2]
[404071971,1769785841698,-500.0,0.00013698,2]
[404071972,1769785841709,-500.0,0.00013698,2]
[404071973,1769785841719,-500.0,0.00013698,2]
[404071974,1769785841729,-500.0,0.00013698,2]
[404071975,1769785841739,-500.0,0.00013698,2]
[404071976,1769785841750,-500.0,0.00013698,2]
[404071977,1769785841759,-500.0,0.00013698,2]
[404071978,1769785841770,-500.0,0.00013698,2]
[404071979,1769785841779,-500.0,0.00013698,2]
[404071980,1769785841790,-500.0,0.00013698,2]
[404071981,1769785841800,-500.0,0.00013698,2]
[404071982,1769785841811,-500.0,0.00013698,2]
[404071983,1769785841820,-357.52185889,0.00013698,2]
[404071984,1769785841830,-500.0,0.00013698,2]
[404071985,1769785841839,-500.0,0.00013698,2]
[404071986,1769785841849,-500.0,0.00013698,2]
[404071987,1769785841860,-500.0,0.00013698,2]
[404071988,1769785841870,-500.0,0.00013698,2]
[404071989,1769785841879,-500.0,0.00013698,2]
[404071990,1769785841890,-500.0,0.00013698,2]
[404071991,1769785841899,-500.0,0.00013698,2]
[404071992,1769785841908,-604.58205548,0.00013698,2]
[404071993,1769785841919,-502.05200047,0.00013698,2]
[404071994,1769785841930,-500.0,0.00013698,2]
[404071995,1769785841940,-500.0,0.00013698,2]
[404071996,1769785841950,-500.0,0.00013698,2]
[404071997,1769785841959,-500.0,0.00013698,2]
[404071998,1769785841970,-500.0,0.00013698,2]
[404071999,1769785841979,-500.0,0.00013698,2]
[404072000,1769785841988,-500.0,0.00013698,2]
[404072001,1769785841998,-208.77047208,0.00013698,2]
[404072002,1769785842007,-500.0,0.00013698,2]
[404072003,1769785842017,-500.0,0.00013698,2]
[404072004,1769785842027,-500.0,0.00013698,2]
[404072005,1769785842037,-500.0,0.00013698,2]
[404072006,1769785842046,-500.0,0.00013698,2]
[404072007,1769785842056,-541.12934131,0.00013698,2]
[404072008,1769785842066,-500.0,0.00013698,2]
[404072009,1769785842075,-500.0,0.00013698,2]
[404072010,1769785842085,-500.0,0.00013698,2]
[404072011,1769785842095,-500.0,0.00013698,2]
[404072012,1769785842105,-518.22564834,0.00013698,2]
[404072013,1769785842115,-500.0,0.00013698,2]
[404072014,1769785842124,-500.0,0.00013698,2]
[404072015,1769785842134,-500.0,0.00013698,2]
[404072016,1769785842145,-500.0,0.00013698,2]
[404072017,1769785842155,-500.0,0.00013698,2]
[404072018,1769785842166,-244.79656408,0.00013698,2]
[404072019,1769785842427,-500.0,0.00013698,2]
[404072020,1769785842436,-500.0,0.00013698,2]
[404072021,1769785842446,-500.0,0.00013698,2]
[404072022,1769785842458,-500.0,0.00013698,2]
[404072023,1769785842467,-500.0,0.00013698,2]
[404072024,1769785842477,-396.00925811,0.00013698,2]
[404072025,1769785842486,-500.0,0.00013698,2]
[404072026,1769785842496,-500.0,0.00013698,2]
[404072027,1769785842504,-500.0,0.00013698,2]
[404072028,1769785842513,-500.0,0.00013698,2]
[404072029,1769785842522,-500.0,0.00013698,2]
[404072030,1769785842530,-500.0,0.00013698,2]
[404072031,1769785842539,-500.0,0.00013698,2]
[404072033,1769785842549,-500.0,0.00013698,2]
[404072034,1769785842558,-500.0,0.00013698,2]
[404072035,1769785842568,-500.0,0.00013698,2]
[404072036,1769785842577,-500.0,0.00013698,2]
[404072037,1769785842587,-500.0,0.00013698,2]
[404072038,1769785842596,-500.0,0.00013698,2]
[404072039,1769785842605,-530.17,0.00013698,2]
[404072040,1769785842615,-530.17,0.00013698,2]
[404072041,1769785842624,-530.17,0.00013698,2]
[404072042,1769785842634,-530.17,0.00013698,2]
[404072043,1769785842643,-530.17,0.00013698,2]
[404072044,1769785842653,-530.17,0.00013698,2]